[Event "17th Paracin Open 2024"]
[Site "Paracin"]
[Date "2024.07.06"]
[Round "5.1"]
[White "Xu, Junwei"]
[Black "Mardov, Dimitar"]
[Result "1/2-1/2"]
[ECO "D02"]
[WhiteElo "2138"]
[BlackElo "2484"]
[Annotator "TA"]
[PlyCount "79"]
[EventDate "2024.07.02"]
[EventType "swiss"]
[EventCountry "SRB"]
[SourceTitle "playchess.com"]
[Source "ChessBase"]
[SourceQuality "1"]
[TimeControl "5400+30"]

{[%evp 9,79,0,12,0,2,4,13,15,31,16,16,14,9,1,10,0,15,0,0,0,23,13,21,13,8,2,15,17,14,27,25,35,33,16,13,0,21,19,15,14,22,24,15,24,27,26,69,37,37,0,0,0,0,0,0,1,0,12,31,0,0,0,0,0,0,0,0,0,0,0,0,0]} 1. Nf3 {[%emt 0:00:41]} d5 {[%emt 0:00:08]} 2. d4 {[%emt 0:00:33]} Nf6 {[%emt 0:00:45]} 3. Bf4 {[%emt 0:00:13]} c5 {[%emt 0:02:06]} 4. e3 {[%emt 0:01:44]} Nc6 {[%emt 0:00:27]} 5. c3 {[%emt 0:00:39]} Bg4 {[%emt 0:02:03]} 6. h3 {[%emt 0:04:09]} Bxf3 {[%emt 0:04:18]} 7. Qxf3 {[%emt 0:00:18]} Qb6 {[%emt 0:04:34]} 8. Qe2 {[%emt 0:02:36]} a6 {[%emt 0:06:02][%cal Rc5d4]} 9. Qc2 {[%emt 0:03:17]} e6 {[%emt 0:03:16]} 10. Nd2 {[%emt 0:00:12]} Be7 {[%emt 0:03:41]} 11. Be2 {[%emt 0:00:12]} O-O {[%emt 0:00:34]} 12. O-O {[%emt 0:07:54]} Rac8 {[%emt 0:03:48][%cal Rc5d4]} 13. Qb3 {[%emt 0:01:11]} Qa7 {[%emt 0:01:28]} 14. a4 {[%emt 0:00:46]} Na5 {[%emt 0:06:32]} 15. Qa2 {[%emt 0:02:52]} b6 {[%emt 0:04:16]} 16. Rfe1 {[%emt 0:01:41]} Rfd8 {[%emt 0:02:35]} 17. Qb1 {[%emt 0:01:33]} h6 {[%emt 0:01:58]} 18. Bd3 {[%emt 0:02:27]} Nc6 {[%emt 0:04:47]} 19. Qd1 {[%emt 0:01:51]} Bd6 {[%emt 0:02:52]} 20. Bxd6 {[%emt 0:00:27]} Rxd6 {[%emt 0:00:05]} 21. f4 {[%emt 0:00:06]} Rdd8 {[%emt 0:05:01]} 22. Qe2 {[%emt 0:02:58]} c4 {[%emt 0:01:24]} 23. Bb1 {[%emt 0:00:15]} Qc7 {[%emt 0:01:31]} 24. Rf1 {[%emt 0:01:40]} b5 {[%emt 0:01:42]} 25. e4 {[%emt 0:06:08]} dxe4 {[%emt 0:02:45]} 26. Nxe4 {[%emt 0:00:47]} Nxe4 {[%emt 0:02:31]} 27. Bxe4 {[%emt 0:00:15] With the idea axb5.} g6 {[%emt 0:03:18]} 28. axb5 {[%emt 0:04:20]} (28. h4 $5) 28... axb5 {[%emt 0:00:16]} 29. Ra6 {[%emt 0:01:29]} Ne7 {[%emt 0:01:28]} 30. Qf3 {[%emt 0:00:22]} Rd6 {[%emt 0:02:13]} 31. Ra2 {[%emt 0:01:05]} b4 {[%emt 0:02:05]} 32. Rfa1 {[%emt 0:01:30]} bxc3 {[%emt 0:00:37]} 33. bxc3 {[%emt 0:00:08]} Nd5 {[%emt 0:01:32]} 34. Ra5 {[%emt 0:15:54]} Qd8 {[%emt 0:04:14] The position is equal.} 35. f5 {[%emt 0:02:21]} gxf5 {[%emt 0:00:41]} 36. Bxd5 {[%emt 0:00:03]} Rxd5 {[%emt 0:00:12]} 37. Rxd5 {[%emt 0:00:02]} Qxd5 {[%emt 0:00:10]} 38. Qxd5 {[%emt 0:00:02]} exd5 {[%emt 0:00:09]} 39. Rf1 {[%emt 0:00:02]} Re8 {[%emt 0:01:31]} 40. Rxf5 {[%emt 0:00:40] Weighted Error Value: White=0.06 (flawless) /Black=0.06 (flawless) .  Inaccurate:     	White=3     	Black=1      OK:         	White=10    	Black=14} 1/2-1/2

[Event "17th Paracin Open 2024"]
[Site "Paracin"]
[Date "2024.07.06"]
[Round "5.2"]
[White "Fernandez, Daniel Howard"]
[Black "Fier, Alexandr"]
[Result "1/2-1/2"]
[ECO "D02"]
[WhiteElo "2526"]
[BlackElo "2602"]
[Annotator "TA"]
[PlyCount "117"]
[EventDate "2024.07.02"]
[EventType "swiss"]
[EventCountry "SRB"]
[SourceTitle "playchess.com"]
[Source "ChessBase"]
[SourceQuality "1"]
[TimeControl "5400+30"]

{[%evp 42,117,127,101,126,110,111,91,99,85,104,109,181,61,54,62,71,66,75,45,82,78,49,52,87,94,80,25,25,25,103,90,99,100,120,113,118,119,160,159,304,368,516,516,508,508,2064,2027,1921,1906,1610,1188,1021,80,506,0,0,0,0,0,0,0,0,0,0,0,0,0,0,0,0,0,0,0,0,0,0,0]} 1. d4 {[%emt 0:03:30]} Nf6 {[%emt 0:00:01]} 2. Nf3 {[%emt 0:00:07]} d5 {[%emt 0:00:03]} 3. c3 {[%emt 0:01:42]} c5 {[%emt 0:00:26]} 4. dxc5 {[%emt 0:11:46]} e6 {[%emt 0:00:13]} 5. Be3 {[%emt 0:02:25]} a5 {[%emt 0:00:57]} 6. g3 {[%emt 0:00:24] D02: 1 d4 d5 2 Nf3 sidelines, including 2...Nf6 3 g3 and 2...Nf6 3 Bf4.} Nbd7 $146 {[%emt 0:03:41]} ({Predecessor:} 6... Na6 7. Bg2 Nxc5 8. O-O Be7 9. Nbd2 O-O 10. c4 b6 11. cxd5 Nxd5 12. Bd4 Bb7 {0-1 Kozak,A (2458)-Sarkar,J (2314) Titled Tuesday intern op 05th Apr Late blitz 2022 (1)}) 7. c4 {[%emt 0:01:09]} dxc4 {[%emt 0:02:44]} 8. Nbd2 {[%emt 0:00:38]} Ng4 {[%emt 0:06:36]} 9. c6 {[%emt 0:01:47]} bxc6 {[%emt 0:00:35]} 10. Bd4 {[%emt 0:00:40]} Ba6 {[%emt 0:07:48]} 11. e3 {[%emt 0:09:13]} Bb4 {[%emt 0:05:49]} 12. a3 {[%emt 0:10:54]} Bxd2+ {[%emt 0:00:06]} 13. Nxd2 {[%emt 0:00:06]} Nge5 {[%emt 0:00:17]} 14. f4 {[%emt 0:05:31]} Nd3+ {[%emt 0:00:06]} 15. Bxd3 {[%emt 0:00:05]} cxd3 {[%emt 0:00:02]} 16. Bxg7 {[%emt 0:00:32]} Rg8 {[%emt 0:00:02]} 17. Bc3 {[%emt 0:00:08]} Qb6 {[%emt 0:07:46]} 18. Qf3 {[%emt 0:01:58]} O-O-O {[%emt 0:05:36]} 19. b4 {[%emt 0:00:39]} a4 {[%emt 0:00:28]} 20. Bd4 {[%emt 0:10:06]} Qc7 {[%emt 0:00:56]} 21. Rc1 {[%emt 0:00:17]} Bb5 {[%emt 0:00:04]} 22. Ne4 {[%emt 0:03:55]} Nb6 {[%emt 0:00:23]} 23. Bxb6 {[%emt 0:02:00]} d2+ {[%emt 0:00:29]} (23... Qxb6 $2 {is the wrong capture.} 24. Kd2 $18) 24. Nxd2 {[%emt 0:00:05]} Qxb6 {[%emt 0:00:01]} 25. Nc4 {[%emt 0:00:45]} Qa6 {[%emt 0:01:46]} 26. Qe4 $1 {[%emt 0:02:41]} Rge8 {[%emt 0:03:22]} (26... Rd5 $16) 27. O-O {[%emt 0:01:50]} (27. Ne5 $1 $18 {[%cal Re5c6]} Rd5 28. Nxf7 (28. Qxh7 Red8 $15)) 27... f5 $14 {[%emt 0:00:48]} 28. Qc2 {[%emt 0:00:10]} Bxc4 {[%emt 0:00:18]} 29. Qxc4 {[%emt 0:00:03]} Qxc4 {[%emt 0:00:05]} 30. Rxc4 {[%emt 0:30:24]} Rd3 {[%emt 0:00:09]} 31. b5 {[%emt 0:00:00]} Rxa3 {[%emt 0:00:18]} 32. Rxc6+ {[%emt 0:00:00]} Kb7 {[%emt 0:01:46]} 33. Rd1 {[%emt 0:00:00]} Re7 {[%emt 0:00:03]} 34. Rd2 {[%emt 0:00:00]} ({White should play} 34. Rdd6 $1 $16) 34... Rxe3 $11 {[%emt 0:01:33]} 35. Ra6 {[%emt 0:00:00]} Rb3 {[%emt 0:00:58]} (35... a3 $11) 36. Rxa4 $16 {[%emt 0:00:00]} Rxb5 {[%emt 0:00:06]} 37. Kg2 {[%emt 0:00:00]} e5 {[%emt 0:17:49]} 38. fxe5 {[%emt 0:00:00]} Rbxe5 {[%emt 0:00:03]} 39. Kf3 {[%emt 0:00:00]} Rb5 {[%emt 0:03:02]} 40. Rad4 {[%emt 0:00:00]} Rb1 {[%emt 0:05:06] [#]} (40... Kc6 $16 {keeps fighting.} 41. Kg2 Rg7 42. Rd6+ Kc7) 41. Rd7+ $1 $18 {[%emt 0:00:00]} Rxd7 {[%emt 0:00:03]} 42. Rxd7+ {[%emt 0:00:00]} Kc6 {[%emt 0:00:01]} 43. Rxh7 {[%emt 0:00:00]} Kd6 {[%emt 0:00:02]} (43... Rf1+ $142 44. Kg2 Rc1) 44. Kf4 $18 {[%emt 0:00:00]} Rf1+ {[%emt 0:00:04]} 45. Kg5 {[%emt 0:00:00]} Ke6 {[%emt 0:00:05]} 46. Rh6+ {[%emt 0:00:00]} Ke7 {[%emt 0:00:23]} 47. Rg6 $2 {[%emt 0:00:00]} (47. Rf6 $18 {is the precise move to win.}) 47... Rf2 $2 {[%emt 0:01:10][%mdl 8192] [#]} (47... Rh1 $16) 48. h4 $2 {[%emt 0:00:00]} (48. Rg7+ $1 $18 Ke6 49. Rh7) 48... Rf3 $11 {[%emt 0:00:02]} 49. Kh6 {[%emt 0:00:00]} Kf7 {[%emt 0:01:20]} 50. h5 {[%emt 0:00:00]} Re3 {[%emt 0:07:35]} 51. Kh7 {[%emt 0:00:00]} Re1 {[%emt 0:00:10]} 52. h6 {[%emt 0:00:47]} Rh1 {[%emt 0:00:04]} 53. Ra6 {[%emt 0:01:20]} Rh3 {[%emt 0:00:09]} 54. Ra7+ {[%emt 0:00:54]} Kf6 {[%emt 0:00:32]} 55. Rg7 {[%emt 0:00:11]} Rh1 {[%emt 0:00:22]} 56. g4 {[%emt 0:00:27]} fxg4 {[%emt 0:00:04]} 57. Rxg4 {[%emt 0:00:04]} Kf7 {[%emt 0:00:38]} 58. Rf4+ {[%emt 0:00:02]} Ke7 {[%emt 0:00:05]} 59. Re4+ {[%emt 0:02:27]} 1/2-1/2

[Event "17th Paracin Open 2024"]
[Site "Paracin"]
[Date "2024.07.06"]
[Round "5.4"]
[White "Safarli, Eltaj"]
[Black "Itgelt, Khuyagtsogt"]
[Result "1/2-1/2"]
[ECO "C77"]
[WhiteElo "2595"]
[BlackElo "2411"]
[Annotator "TA"]
[PlyCount "54"]
[EventDate "2024.07.02"]
[EventType "swiss"]
[EventCountry "SRB"]
[SourceTitle "playchess.com"]
[Source "ChessBase"]
[SourceQuality "1"]
[TimeControl "5400+30"]

{[%evp 12,54,18,20,22,20,12,0,8,0,2,0,0,-10,0,0,0,-6,3,-12,0,-20,0,0,0,-27,0,-29,-31,-29,-30,-65,0,0,0,-8,-11,-18,0,0,0,0,0,0,0]} 1. e4 {[%emt 0:00:27]} e5 {[%emt 0:00:04]} 2. Nf3 {[%emt 0:01:50]} Nc6 {[%emt 0:00:07]} 3. Bb5 {[%emt 0:00:04][%cal Bf1b5,Bb5a4,Ba4b3,Bb3d5][%mdl 32]} a6 {[%emt 0:00:04]} 4. Ba4 {[%emt 0:00:04]} Nf6 {[%emt 0:00:06]} 5. Nc3 {[%emt 0:00:17]} Bc5 {[%emt 0:00:34]} 6. d3 {[%emt 0:00:53]} b5 {[%emt 0:00:10]} 7. Bb3 {[%emt 0:00:05]} h6 {[%emt 0:00:26]} 8. Nd5 {[%emt 0:02:26]} d6 {[%emt 0:01:20]} 9. c3 {[%emt 0:00:16]} Rb8 {[%emt 0:03:30]} 10. O-O {[%emt 0:04:10]} O-O {[%emt 0:01:07]} 11. Be3 {[%emt 0:00:52]} Nxd5 {[%emt 0:10:14]} 12. Bxd5 {[%emt 0:03:02]} Bxe3 {[%emt 0:00:14]} 13. fxe3 {[%emt 0:00:09]} Ne7 {[%emt 0:00:03]} 14. Bb3 {[%emt 0:00:24]} Ng6 {[%emt 0:00:40]} 15. Qe1 {[%emt 0:01:13]} Kh7 {[%emt 0:06:38]} 16. Qg3 {[%emt 0:03:09]} f5 {[%emt 0:02:28]} 17. exf5 {[%emt 0:04:31]} Bxf5 {[%emt 0:00:05]} 18. d4 {[%emt 0:00:32]} Qe7 {[%emt 0:12:32]} 19. Rf2 {[%emt 0:05:25]} Bd3 {[%emt 0:08:44]} (19... Be4 {feels hotter.} 20. dxe5 Nxe5 21. Nxe5 Rxf2 22. Kxf2 dxe5 23. Rd1 a5) 20. dxe5 {[%emt 0:19:45]} Nxe5 {[%emt 0:02:58]} 21. Nxe5 {[%emt 0:00:54]} Qxe5 {[%emt 0:00:39]} (21... dxe5 $15 22. Rxf8 Rxf8) 22. Qxe5 $11 {[%emt 0:04:08] The position is equal.} dxe5 {[%emt 0:01:14]} 23. Rxf8 {[%emt 0:01:33]} Rxf8 $15 {[%emt 0:00:06] KRB-KRB} 24. a4 {[%emt 0:01:52]} c5 {[%emt 0:01:25] [#] White must now prevent ...c4.} 25. axb5 {[%emt 0:02:36]} axb5 {[%emt 0:00:06] aiming for ...c4.} 26. Bd5 {[%emt 0:00:56]} e4 {[%emt 0:00:39]} 27. b4 {[%emt 0:01:05]} cxb4 {[%emt 0:00:42] Weighted Error Value: White=0.10 (very precise) /Black=0.11 (very precise) .  Mistake:       	---       	Black=1      Inaccurate:     	White=3     	Black=1      OK:         	White=5     	Black=4} 1/2-1/2

[Event "17th Paracin Open 2024"]
[Site "Paracin"]
[Date "2024.07.06"]
[Round "5.5"]
[White "Antal, Gergely"]
[Black "Filip, Lucian-Ioan"]
[Result "1-0"]
[ECO "B40"]
[WhiteElo "2580"]
[BlackElo "2353"]
[Annotator "TA"]
[PlyCount "103"]
[EventDate "2024.07.02"]
[EventType "swiss"]
[EventCountry "SRB"]
[SourceTitle "playchess.com"]
[Source "ChessBase"]
[SourceQuality "1"]
[TimeControl "5400+30"]

{[%evp 14,103,10,-12,16,9,15,21,0,0,0,13,0,0,27,0,0,0,46,47,49,30,15,20,22,8,18,23,20,0,16,0,0,-4,0,-7,0,0,34,26,36,24,27,25,135,144,125,134,133,116,111,111,139,139,130,26,58,24,82,110,108,87,148,166,318,304,403,427,585,635,649,622,593,459,455,478,665,683,829,793,811,749,10420,6741,29975,29977,29977,29978,29976,29978,29978,29978]} 1. e4 {[%emt 0:00:03]} c5 {[%emt 0:02:57]} 2. Nf3 {[%emt 0:00:05]} e6 {[%emt 0:00:03]} 3. b3 {[%emt 0:00:24]} a6 {[%emt 0:00:07]} 4. Bb2 {[%emt 0:00:40]} d5 {[%emt 0:01:53]} 5. exd5 {[%emt 0:00:06]} exd5 {[%emt 0:00:02]} 6. Qe2+ {[%emt 0:00:05] B40: Sicilian: 2...e6, Unusual lines.} Be6 {[%emt 0:00:08]} 7. g3 {[%emt 0:00:24]} Nc6 {[%emt 0:00:31]} 8. d3 $5 {[%emt 0:00:19][%mdl 4] A promising side line.} h6 $146 {[%emt 0:06:49]} ({Predecessor:} 8... Nh6 9. Bh3 Qe7 10. Bxe6 Qxe6 11. Qxe6+ fxe6 12. Nc3 Nf5 13. O-O-O Be7 14. Rhe1 Kf7 {0-1 Antipov,M (2606)-Kramnik,V (2753) Titled Tuesday intern op 18th Jul Late blitz 2023 (10)}) 9. Bh3 {[%emt 0:08:33]} Qe7 {[%emt 0:00:09]} 10. Bg2 {[%emt 0:00:04]} Bg4 {[%emt 0:12:51]} 11. Qxe7+ {[%emt 0:00:48]} Ngxe7 {[%emt 0:00:08]} 12. O-O {[%emt 0:10:51]} O-O-O {[%emt 0:05:07]} 13. Re1 {[%emt 0:04:22]} d4 {[%emt 0:08:25]} 14. Ne5 {[%emt 0:01:36]} Nxe5 {[%emt 0:03:13]} 15. Rxe5 {[%emt 0:00:03]} Ng6 {[%emt 0:02:36]} (15... Kc7 $11 {is more appropriate.}) 16. Re1 {[%emt 0:00:17]} Bd6 {[%emt 0:14:09]} 17. h3 {[%emt 0:02:02]} Be6 {[%emt 0:00:14]} 18. Nd2 {[%emt 0:00:06]} Rhe8 {[%emt 0:03:22]} 19. a4 {[%emt 0:00:50]} a5 {[%emt 0:09:48]} 20. Nc4 {[%emt 0:07:40]} Bc7 {[%emt 0:01:16]} 21. Rad1 {[%emt 0:02:27]} b6 {[%emt 0:01:15]} 22. Bc1 {[%emt 0:12:36]} Ne7 {[%emt 0:08:49]} 23. Re2 {[%emt 0:05:12]} Nd5 {[%emt 0:02:02]} 24. Bd2 {[%emt 0:00:04]} Nf6 {[%emt 0:00:42]} 25. Rde1 {[%emt 0:02:46]} Kd7 {[%emt 0:00:22]} 26. Ne5+ {[%emt 0:05:44]} Bxe5 {[%emt 0:00:25]} 27. Rxe5 {[%emt 0:00:03]} Kc8 {[%emt 0:03:57]} 28. g4 {[%emt 0:01:36]} Rg8 {[%emt 0:03:47] [#]} (28... Bd7 $11) 29. Rxe6 $1 $16 {[%emt 0:06:13]} fxe6 {[%emt 0:00:04]} 30. Rxe6 {[%emt 0:00:03]} Nd5 {[%emt 0:01:28]} 31. Bxd5 {[%emt 0:01:18]} Rxd5 {[%emt 0:00:01]} 32. Rxb6 {[%emt 0:29:10]} Re8 {[%emt 0:02:01]} 33. Kf1 {[%emt 0:00:00]} (33. Bxa5 $6 Re2 $11) 33... Rde5 {[%emt 0:01:20]} 34. Bf4 {[%emt 0:00:00]} (34. Bxa5 $16 {And now Rb5 would win.} h5 35. Rb5 hxg4 36. hxg4) 34... Re1+ $11 {[%emt 0:00:15]} 35. Kg2 {[%emt 0:00:00]} R1e2 {[%emt 0:05:52]} (35... g5 $11 {keeps the balance.} 36. Bd6 R1e2 (36... R8e2 $2 37. Bxc5 Rxc2 38. Bxd4 $16)) 36. Rc6+ $16 {[%emt 0:00:00]} Kb7 {[%emt 0:00:04]} 37. Rxc5 {[%emt 0:00:00]} Rc8 {[%emt 0:00:05] [#]} ({Black should play} 37... g5 38. Bd6 Rc8) 38. Rb5+ $1 $16 {[%emt 0:00:00]} (38. Rxa5 Rcxc2 39. Rb5+ Kc6 $16) 38... Ka6 $2 {[%emt 0:00:03]} (38... Kc6 {is a better defense.} 39. Be5 (39. Rxa5 Rxc2 40. Be5 Rd8 $16) 39... g6 40. Bxd4 (40. Rxa5 Rd8 $18) 40... Rxc2 41. Rxa5 Rb8 42. Ra6+ Kd5) 39. Be5 $18 {[%emt 0:00:00]} Rd8 {[%emt 0:01:41]} 40. Bxg7 {[%emt 0:00:00]} Rxc2 {[%emt 0:00:09]} 41. Bxh6 {[%emt 0:00:00]} Rc3 {[%emt 0:00:13]} 42. h4 {[%emt 0:00:00]} Rxd3 {[%emt 0:00:04]} 43. h5 {[%emt 0:00:00]} Rd1 {[%emt 0:01:15]} 44. Bg5 {[%emt 0:00:00]} Rd7 {[%emt 0:01:20]} 45. h6 {[%emt 0:00:00]} Ka7 {[%emt 0:00:49]} 46. Rxa5+ {[%emt 0:00:00]} Kb7 {[%emt 0:01:02]} 47. Rc5 {[%emt 0:01:03]} d3 {[%emt 0:00:08]} 48. Rc1 {[%emt 0:00:06]} Rxc1 {[%emt 0:00:35]} 49. Bxc1 {[%emt 0:00:02]} d2 {[%emt 0:00:42]} 50. Bxd2 $1 {[%emt 0:00:04]} Rxd2 {[%emt 0:00:02]} 51. h7 {[%emt 0:00:27]} Rd8 {[%emt 0:00:35]} 52. g5 {[%emt 0:00:04]} 1-0

[Event "17th Paracin Open 2024"]
[Site "Paracin"]
[Date "2024.07.06"]
[Round "5.6"]
[White "Harsh Suresh"]
[Black "Narayanan, Srinath"]
[Result "1/2-1/2"]
[ECO "B62"]
[WhiteElo "2426"]
[BlackElo "2533"]
[Annotator "TA"]
[PlyCount "40"]
[EventDate "2024.07.02"]
[EventType "swiss"]
[EventCountry "SRB"]
[SourceTitle "playchess.com"]
[Source "ChessBase"]
[SourceQuality "1"]
[TimeControl "5400+30"]

{[%evp 16,40,38,47,55,41,54,36,59,14,48,34,25,29,21,26,32,14,31,30,38,11,23,17,22,-17,0]} 1. e4 {[%emt 0:02:19]} c5 {[%emt 0:00:19]} 2. Nf3 {[%emt 0:00:15]} d6 {[%emt 0:00:06]} 3. d4 {[%emt 0:00:17]} cxd4 {[%emt 0:00:06]} 4. Nxd4 {[%emt 0:00:09]} Nf6 {[%emt 0:00:04]} 5. Nc3 {[%emt 0:00:09]} Nc6 {[%emt 0:00:04]} 6. Bg5 {[%emt 0:00:29]} e6 {[%emt 0:00:07]} 7. Qd3 {[%emt 0:01:12]} Bd7 {[%emt 0:03:25]} 8. O-O-O {[%emt 0:01:32]} a6 {[%emt 0:01:31]} 9. f4 {[%emt 0:00:34][%cal Bf2f4,Bf4g5][%mdl 32]} h6 {[%emt 0:05:55]} 10. Bh4 {[%emt 0:03:24]} g5 {[%emt 0:04:33]} 11. fxg5 {[%emt 0:14:01]} Ng4 {[%emt 0:00:14] White is slightly better.} 12. Nf3 {[%emt 0:03:28][%cal Og5g6] [#] Black must now prevent g6!} Nge5 {[%emt 0:09:37]} 13. Qd2 {[%emt 0:06:03][%cal Og5g6] g6! is the strong threat.} Be7 {[%emt 0:00:31]} 14. Be2 {[%emt 0:05:38]} Nxf3 {[%emt 0:02:20]} 15. gxf3 {[%emt 0:01:04]} hxg5 {[%emt 0:00:10]} 16. Bg3 {[%emt 0:01:20]} Ne5 {[%emt 0:00:17]} 17. Kb1 {[%emt 0:15:39]} Qc7 {[%emt 0:01:50]} 18. f4 {[%emt 0:00:29]} gxf4 {[%emt 0:00:37]} 19. Bxf4 {[%emt 0:00:12][%cal Oh2h4]} b5 {[%emt 0:01:20] [#] ...b4 would now be deadly.} 20. Bd3 {[%emt 0:02:47]} b4 {[%emt 0:03:51] Weighted Error Value: White=0.15 (very precise) /Black=0.08 (flawless) .  Inaccurate:     	White=3     	Black=1      OK:         	White=3     	Black=5      Best:        	---       	Black=1} 1/2-1/2